[Event "Turkish Cup 2024"]
[Site "Denizli"]
[Date "2024.08.05"]
[Round "10"]
[White "Tahaoglu, Erkin"]
[Black "Zumrut, Cihan"]
[Result "1/2-1/2"]
[ECO "B12"]
[WhiteElo "1916"]
[BlackElo "1707"]
[Annotator "NA COMBH RC"]
[PlyCount "89"]
[EventDate "2024.08.01"]
[EventType "swiss"]
[EventCountry "TUR"]
[SourceTitle "playchess.com"]
[Source "ChessBase"]
[SourceQuality "1"]
[TimeControl "5400+30"]

1. d4 {[%emt 0:01:00]} d6 {[%emt 0:01:00]} 2. e4 {[%emt 0:00:30]} c6 {[%emt 0:00:30]} 3. Nf3 {[%emt 0:00:30]} Qc7 {[%emt 0:00:30]} 4. Bd3 {[%emt 0:00:30]} e5 {[%emt 0:00:30]} 5. c3 {[%emt 0:00:30]} Nf6 {[%emt 0:00:30]} 6. O-O {[%emt 0:02:30]} Be7 {[%emt 0:00:00]} 7. Re1 {[%emt 0:01:30]} O-O {[%emt 0:00:00]} 8. Nbd2 {[%emt 0:01:30]} Nbd7 {[%emt 0:00:30]} 9. a4 {[%emt 0:00:30]} a6 {[%emt 0:00:30]} 10. a5 {[%emt 0:02:30]} Re8 {[%emt 0:00:30]} 11. dxe5 {[%emt 0:03:30]} dxe5 {[%emt 0:00:30]} 12. b4 {[%emt 0:02:30]} Nf8 {[%emt 0:00:00]} 13. Qb3 {[%emt 0:03:30]} Be6 {[%emt 0:00:00]} 14. Bc4 {[%emt 0:02:30]} Rad8 {[%emt 0:11:30]} 15. Ng5 {[%emt 0:02:30]} Bxc4 {[%emt 0:01:30]} 16. Nxc4 {[%emt 0:00:30]} Bd6 {[%emt 0:07:30]} 17. Be3 {[%emt 0:01:30]} Qe7 {[%emt 0:00:30]} 18. Nxd6 {[%emt 0:02:30]} Rxd6 {[%emt 0:02:30]} 19. Bc5 {[%emt 0:00:30]} Ne6 {[%emt 0:00:30]} 20. Bxd6 {[%emt 0:01:30]} Qxd6 {[%emt 0:00:00]} 21. Rad1 {[%emt 0:00:30]} Qc7 {[%emt 0:03:00]} 22. Nxe6 {[%emt 0:00:30]} Rxe6 {[%emt 0:00:00]} 23. Rd3 {[%emt 0:01:30]} g6 {[%emt 0:00:00]} 24. Red1 {[%emt 0:00:30]} Qe7 {[%emt 0:00:30]} 25. Qc2 {[%emt 0:01:30]} Kg7 {[%emt 0:00:30]} 26. f3 {[%emt 0:00:30]} c5 {[%emt 0:00:30]} 27. Qd2 {[%emt 0:00:30]} Qc7 {[%emt 0:01:30]} 28. Rd6 {[%emt 0:02:30]} Re7 {[%emt 0:00:30]} 29. Rd8 {[%emt 0:03:30]} cxb4 {[%emt 0:00:30]} 30. cxb4 {[%emt 0:00:30]} Qc4 {[%emt 0:00:30]} 31. Qd6 {[%emt 0:00:30]} Qc7 {[%emt 0:02:30]} 32. Qxc7 {[%emt 0:03:30]} Rxc7 {[%emt 0:00:00]} 33. R8d6 {[%emt 0:00:30]} h5 {[%emt 0:01:00]} 34. h4 {[%emt 0:00:30]} Re7 {[%emt 0:01:30]} 35. Rb6 {[%emt 0:00:30]} Ne8 {[%emt 0:01:30]} 36. Rd8 {[%emt 0:01:30]} Nf6 {[%emt 0:00:30]} 37. Rb8 {[%emt 0:00:30]} Rc7 {[%emt 0:01:30]} 38. R8xb7 {[%emt 0:00:30]} Rc1+ {[%emt 0:00:30]} 39. Kh2 {[%emt 0:00:00]} Nh7 {[%emt 0:00:30]} 40. Rxa6 {[%emt 0:00:00]} g5 {[%emt 0:00:30]} 41. Raa7 {[%emt 0:00:30]} Kg6 {[%emt 0:01:30]} 42. Rxf7 {[%emt 0:00:30]} Nf6 {[%emt 0:00:30]} 43. Rxf6+ {[%emt 0:00:00]} Kxf6 {[%emt 0:00:30]} 44. Ra6+ {[%emt 0:00:00]} Kf7 {[%emt 0:00:30] Check Result:26.62} 45. hxg5 {[%emt 0:00:30]} 1/2-1/2

[Event "Turkish Cup 2024"]
[Site "Denizli"]
[Date "2024.08.05"]
[Round "10"]
[White "Kilic, Ihsan"]
[Black "Selvi, Kaan"]
[Result "1/2-1/2"]
[ECO "A29"]
[WhiteElo "1911"]
[BlackElo "1863"]
[Annotator "NA RC"]
[PlyCount "129"]
[EventDate "2024.08.01"]
[EventType "swiss"]
[EventCountry "TUR"]
[SourceTitle "playchess.com"]
[Source "ChessBase"]
[SourceQuality "1"]
[TimeControl "5400+30"]

1. g3 {[%emt 0:01:00]} Nf6 {[%emt 0:01:00]} 2. Bg2 {[%emt 0:00:30]} e5 {[%emt 0:00:30]} 3. c4 {[%emt 0:00:30]} Nc6 {[%emt 0:00:30]} 4. Nc3 {[%emt 0:00:30]} Bb4 {[%emt 0:00:30]} 5. Nf3 {[%emt 0:02:30]} O-O {[%emt 0:00:30]} 6. Nd5 {[%emt 0:02:30]} Nxd5 {[%emt 0:05:30]} 7. cxd5 {[%emt 0:00:00]} Nd4 {[%emt 0:01:30]} 8. Nxd4 {[%emt 0:03:00]} exd4 {[%emt 0:00:30]} 9. O-O {[%emt 0:00:30]} c6 {[%emt 0:17:30]} 10. a3 {[%emt 0:03:30]} Be7 {[%emt 0:00:30]} 11. b4 {[%emt 0:07:30]} Qb6 {[%emt 0:08:30]} 12. Rb1 {[%emt 0:02:30]} d6 {[%emt 0:05:30]} 13. d3 {[%emt 0:04:30]} cxd5 {[%emt 0:09:30]} 14. Bxd5 {[%emt 0:02:30]} Bh3 {[%emt 0:00:00]} 15. Re1 {[%emt 0:00:30]} Bf6 {[%emt 0:04:00]} 16. a4 {[%emt 0:07:30]} Rfe8 {[%emt 0:04:30]} 17. Bd2 {[%emt 0:02:30]} Re5 {[%emt 0:03:30]} 18. Bf3 {[%emt 0:01:30]} Bg5 {[%emt 0:06:30]} 19. Bxg5 {[%emt 0:04:30]} Rxg5 {[%emt 0:00:00]} 20. Qd2 {[%emt 0:00:30]} Re5 {[%emt 0:02:00]} 21. Rec1 {[%emt 0:00:30]} Bd7 {[%emt 0:02:30]} 22. a5 {[%emt 0:03:30]} Qb5 {[%emt 0:01:30]} 23. Rc4 {[%emt 0:00:30]} Bc6 {[%emt 0:09:24]} 24. Bxc6 {[%emt 0:01:30]} bxc6 {[%emt 0:00:05]} 25. Rxd4 {[%emt 0:00:00]} c5 {[%emt 0:03:06]} 26. Rc4 {[%emt 0:06:00]} Rae8 {[%emt 0:02:07]} 27. e4 {[%emt 0:05:30]} cxb4 {[%emt 0:00:57]} 28. Rcxb4 {[%emt 0:03:30]} Qxa5 {[%emt 0:00:10]} 29. Qb2 {[%emt 0:01:30]} h6 {[%emt 0:01:11]} 30. Ra1 {[%emt 0:02:30]} Qd8 {[%emt 0:07:17]} 31. Rxa7 {[%emt 0:00:30]} Ra5 {[%emt 0:00:09]} 32. Rab7 {[%emt 0:00:30]} Ra8 {[%emt 0:00:32]} 33. R4b5 {[%emt 0:01:30]} Qf6 {[%emt 0:01:25]} 34. Qxf6 {[%emt 0:03:30]} gxf6 {[%emt 0:00:02]} 35. Rd5 {[%emt 0:00:30]} Ra6 {[%emt 0:02:46]} 36. Rd7 {[%emt 0:02:30]} Re6 {[%emt 0:00:30]} 37. Kg2 {[%emt 0:00:30]} Kf8 {[%emt 0:00:21]} 38. Rd8+ {[%emt 0:01:30]} Ke7 {[%emt 0:00:56]} 39. Rh8 {[%emt 0:01:30]} Re5 {[%emt 0:00:02]} 40. Rd4 {[%emt 0:01:30]} h5 {[%emt 0:00:25]} 41. f4 {[%emt 0:04:07]} Rb5 {[%emt 0:00:23]} 42. Kf3 {[%emt 0:01:13]} Ra2 {[%emt 0:01:13]} 43. h4 {[%emt 0:01:18]} Rd2 {[%emt 0:00:53]} 44. f5 {[%emt 0:03:29]} Rb1 {[%emt 0:00:09]} 45. Ra4 {[%emt 0:04:02]} Rxd3+ {[%emt 0:00:24]} 46. Ke2 {[%emt 0:00:35]} Rdb3 {[%emt 0:00:04]} 47. Ra7+ {[%emt 0:00:20]} Rb7 {[%emt 0:00:05]} 48. Rxb7+ {[%emt 0:00:18]} Rxb7 {[%emt 0:00:03]} 49. Rxh5 {[%emt 0:00:00]} Rb3 {[%emt 0:00:25]} 50. Rh8 {[%emt 0:00:44]} Rxg3 {[%emt 0:00:16]} 51. Kf2 {[%emt 0:00:24]} Rh3 {[%emt 0:00:21]} 52. Rh6 {[%emt 0:02:12]} Ra3 {[%emt 0:00:39]} 53. h5 {[%emt 0:02:30]} d5 {[%emt 0:01:07]} 54. exd5 {[%emt 0:00:40]} Rd3 {[%emt 0:00:09]} 55. d6+ {[%emt 0:00:16]} Rxd6 {[%emt 0:00:04]} 56. Ke3 {[%emt 0:00:17]} Kf8 {[%emt 0:00:21]} 57. Rh8+ {[%emt 0:00:54]} Kg7 {[%emt 0:00:04]} 58. Ra8 {[%emt 0:00:27]} Rd1 {[%emt 0:00:14]} 59. Kf4 {[%emt 0:00:36]} Rd4+ {[%emt 0:01:02]} 60. Kg3 {[%emt 0:00:17]} Rd1 {[%emt 0:00:56]} 61. Ra6 {[%emt 0:00:57]} Rg1+ {[%emt 0:00:53]} 62. Kh4 {[%emt 0:01:14]} Rh1+ {[%emt 0:00:51]} 63. Kg4 {[%emt 0:00:10]} Rg1+ {[%emt 0:01:03]} 64. Kh4 {[%emt 0:00:08]} Rf1 {[%emt 0:00:00]} 65. Kg4 {[%emt 0:00:40]} 1/2-1/2

[Event "Turkish Cup 2024"]
[Site "Denizli"]
[Date "2024.08.05"]
[Round "10"]
[White "Kilic, Nurullah"]
[Black "Gunal, Yusuf Kursat"]
[Result "1/2-1/2"]
[ECO "B49"]
[WhiteElo "1907"]
[BlackElo "1773"]
[Annotator "NA RC"]
[PlyCount "47"]
[EventDate "2024.08.01"]
[EventType "swiss"]
[EventCountry "TUR"]
[SourceTitle "playchess.com"]
[Source "ChessBase"]
[SourceQuality "1"]
[TimeControl "5400+30"]

1. e4 {[%emt 0:01:00]} c5 {[%emt 0:01:00]} 2. Nf3 {[%emt 0:01:30]} e6 {[%emt 0:00:00]} 3. d4 {[%emt 0:01:30]} cxd4 {[%emt 0:00:00]} 4. Nxd4 {[%emt 0:00:30]} Nf6 {[%emt 0:00:00]} 5. Nc3 {[%emt 0:00:30]} Nc6 {[%emt 0:00:00]} 6. Be2 {[%emt 0:01:30]} Qc7 {[%emt 0:00:00]} 7. O-O {[%emt 0:03:30]} a6 {[%emt 0:00:00]} 8. Be3 {[%emt 0:03:30]} b5 {[%emt 0:01:30]} 9. a3 {[%emt 0:06:30]} Bb7 {[%emt 0:00:30]} 10. f4 {[%emt 0:00:00]} d6 {[%emt 0:05:30]} 11. Bf3 {[%emt 0:05:00]} Nxd4 {[%emt 0:02:30]} 12. Bxd4 {[%emt 0:02:30]} e5 {[%emt 0:09:30]} 13. Be3 {[%emt 0:04:30]} Be7 {[%emt 0:05:30]} 14. Kh1 {[%emt 0:10:30]} O-O {[%emt 0:14:30]} 15. a4 {[%emt 0:06:30]} b4 {[%emt 0:01:30]} 16. Na2 {[%emt 0:00:00]} a5 {[%emt 0:04:30]} 17. c3 {[%emt 0:01:00]} b3 {[%emt 0:02:30]} 18. Qxb3 {[%emt 0:02:30]} Bxe4 {[%emt 0:00:30]} 19. Bxe4 {[%emt 0:04:30]} Nxe4 {[%emt 0:00:30]} 20. Qd5 {[%emt 0:00:00]} Nf6 {[%emt 0:00:30]} 21. Qd2 {[%emt 0:00:00]} Ne4 {[%emt 0:09:30]} 22. Qd5 {[%emt 0:05:30]} Nf6 {[%emt 0:00:00]} 23. Qd2 {[%emt 0:02:30]} Ne4 {[%emt 0:00:00]} 24. Qd5 {[%emt 0:00:30]} 1/2-1/2

[Event "Turkish Cup 2024"]
[Site "Denizli"]
[Date "2024.08.05"]
[Round "10"]
[White "Topal, Hasan Gokmen"]
[Black "Topuz, Mirac Melih"]
[Result "0-1"]
[ECO "B23"]
[WhiteElo "1905"]
[BlackElo "2148"]
[Annotator "NA RC"]
[PlyCount "74"]
[EventDate "2024.08.01"]
[EventType "swiss"]
[EventCountry "TUR"]
[SourceTitle "playchess.com"]
[Source "ChessBase"]
[SourceQuality "1"]
[TimeControl "5400+30"]

1. e4 c5 2. Nc3 d6 3. d4 cxd4 4. Qxd4 Nc6 5. Qd2 g6 6. b3 Bh6 7. f4 Nf6 8. Bb2 O-O 9. O-O-O e5 10. g3 Re8 11. Bg2 exf4 12. gxf4 Bg4 13. Rf1 Rc8 14. Kb1 Qa5 15. Qxd6 Nb4 16. a3 Nxc2 17. Kxc2 Nxe4 18. Bxe4 Bg7 19. Qb4 Qxb4 20. axb4 Rxe4 21. Nf3 Bxc3 22. Kd3 Rxb4 23. Bxc3 Rxb3 24. Rc1 Bxf3 25. Rhe1 Bg4 26. Kd2 Be6 27. h4 Rd8+ 28. Ke2 Rb6 29. Be5 f6 30. Ba1 Kf7 31. Kf2 Rb4 32. Ke3 Rd7 33. Rc5 Rb3+ 34. Kf2 Rh3 35. h5 Rd2+ 36. Kg1 Rg3+ 37. Kh1 Bd5+ 0-1

[Event "Turkish Cup 2024"]
[Site "Denizli"]
[Date "2024.08.05"]
[Round "10"]
[White "Konusoglu, Kemal Safa"]
[Black "Turgut, Hakan"]
[Result "0-1"]
[ECO "B28"]
[WhiteElo "1904"]
[BlackElo "2052"]
[Annotator "NA RC"]
[PlyCount "146"]
[EventDate "2024.08.01"]
[EventType "swiss"]
[EventCountry "TUR"]
[SourceTitle "playchess.com"]
[Source "ChessBase"]
[SourceQuality "1"]
[TimeControl "5400+30"]

1. e4 {[%emt 0:01:00]} c5 {[%emt 0:01:00]} 2. Nc3 {[%emt 0:01:30]} a6 {[%emt 0:00:00]} 3. Nf3 {[%emt 0:01:30]} b5 {[%emt 0:00:00]} 4. d3 {[%emt 0:01:30]} Bb7 {[%emt 0:00:30]} 5. Be2 {[%emt 0:01:30]} d6 {[%emt 0:12:30]} 6. O-O {[%emt 0:00:30]} Nd7 {[%emt 0:00:30]} 7. a4 {[%emt 0:01:30]} b4 {[%emt 0:00:30]} 8. Nb1 {[%emt 0:01:30]} g6 {[%emt 0:01:30]} 9. Nbd2 {[%emt 0:00:30]} Bg7 {[%emt 0:01:30]} 10. Re1 {[%emt 0:00:30]} Ngf6 {[%emt 0:00:30]} 11. Bf1 {[%emt 0:01:30]} O-O {[%emt 0:01:30]} 12. a5 {[%emt 0:03:30]} Ne8 {[%emt 0:18:30]} 13. Nc4 {[%emt 0:00:30]} Nc7 {[%emt 0:02:30]} 14. g3 {[%emt 0:14:30]} d5 {[%emt 0:08:30]} 15. exd5 {[%emt 0:01:30]} Bxd5 {[%emt 0:00:30]} 16. Bg2 {[%emt 0:11:30]} Re8 {[%emt 0:13:30]} 17. Nfd2 {[%emt 0:18:30]} Bxg2 {[%emt 0:03:30]} 18. Kxg2 {[%emt 0:00:00]} Ne6 {[%emt 0:00:30]} 19. Nb3 {[%emt 0:08:00]} Qc7 {[%emt 0:01:30]} 20. Qe2 {[%emt 0:06:30]} Nf6 {[%emt 0:02:30]} 21. Ne5 {[%emt 0:03:30]} Rad8 {[%emt 0:04:30]} 22. Kg1 {[%emt 0:02:01]} Qd6 {[%emt 0:04:30]} 23. Nc4 {[%emt 0:02:13]} Qd5 {[%emt 0:01:30]} 24. Be3 {[%emt 0:00:43]} Qf5 {[%emt 0:01:12]} 25. Bd2 {[%emt 0:02:53]} h5 {[%emt 0:05:07]} 26. Kg2 {[%emt 0:02:23]} h4 {[%emt 0:00:43]} 27. Ne3 {[%emt 0:02:13]} Qe5 {[%emt 0:01:11]} 28. Nc4 {[%emt 0:00:47]} Qd5+ {[%emt 0:00:10]} 29. Kg1 {[%emt 0:00:24]} Qf5 {[%emt 0:01:28]} 30. Ne3 {[%emt 0:02:00]} Qe5 {[%emt 0:00:32]} 31. Nc4 {[%emt 0:00:11]} Qd5 {[%emt 0:00:38]} 32. Qf1 {[%emt 0:03:35]} Nh7 {[%emt 0:04:00]} 33. Qg2 {[%emt 0:00:19]} hxg3 {[%emt 0:05:15]} 34. hxg3 {[%emt 0:00:08]} Qh5 {[%emt 0:00:10]} 35. Qh1 {[%emt 0:00:34]} Qf5 {[%emt 0:00:33]} 36. Qe4 {[%emt 0:00:43]} Qf6 {[%emt 0:00:32]} 37. Qe5 {[%emt 0:02:52]} Qf3 {[%emt 0:00:16]} 38. Qe2 {[%emt 0:02:48]} Nhg5 {[%emt 0:01:52]} 39. Bxg5 {[%emt 0:01:02]} Nxg5 {[%emt 0:00:03]} 40. Nbd2 {[%emt 0:01:05]} Qf5 {[%emt 0:00:45]} 41. Ne3 {[%emt 0:00:23]} Qh3 {[%emt 0:02:54]} 42. Rab1 {[%emt 0:00:03]} Rd4 {[%emt 0:00:54]} 43. Nf3 {[%emt 0:00:00]} Nxf3+ {[%emt 0:01:01]} 44. Qxf3 {[%emt 0:00:19]} Qd7 {[%emt 0:00:29]} 45. Nc4 {[%emt 0:00:37]} b3 {[%emt 0:00:12]} 46. Nb6 {[%emt 0:01:13]} Qb5 {[%emt 0:00:58]} 47. cxb3 {[%emt 0:00:06]} Rxd3 {[%emt 0:00:00]} 48. Qb7 {[%emt 0:01:10]} Bd4 {[%emt 0:00:16]} 49. Kg2 {[%emt 0:00:27]} Rd2 {[%emt 0:00:33]} 50. Rf1 {[%emt 0:00:36]} Re2 {[%emt 0:00:48]} 51. Qf3 {[%emt 0:00:30]} Re6 {[%emt 0:00:27]} 52. Nc4 {[%emt 0:00:10]} Rf6 {[%emt 0:00:15]} 53. Qd3 {[%emt 0:01:04]} Qb7+ {[%emt 0:00:12]} 54. f3 {[%emt 0:00:00]} Qb5 {[%emt 0:01:03]} 55. Rbe1 {[%emt 0:00:08]} e6 {[%emt 0:00:30]} 56. Re4 {[%emt 0:00:31]} Rf5 {[%emt 0:00:33]} 57. Rh4 {[%emt 0:01:12]} Rd5 {[%emt 0:00:12]} 58. Qc2 {[%emt 0:00:27]} Rb8 {[%emt 0:00:21]} 59. Nb6 {[%emt 0:00:21]} Re5 {[%emt 0:00:24]} 60. Nc4 {[%emt 0:00:35]} Rd5 {[%emt 0:01:03]} 61. Nb6 {[%emt 0:00:19]} Rdd8 {[%emt 0:00:00]} 62. Ra1 {[%emt 0:00:44]} Bg7 {[%emt 0:00:24]} 63. Rc4 {[%emt 0:00:16]} Bd4 {[%emt 0:01:04]} 64. Kh3 {[%emt 0:00:51]} Rd6 {[%emt 0:00:30]} 65. Qd3 {[%emt 0:00:28]} Rbd8 {[%emt 0:00:49]} 66. Qc2 {[%emt 0:00:15]} Qc6 {[%emt 0:00:12]} 67. Qe4 {[%emt 0:00:14]} Qb5 {[%emt 0:00:23]} 68. Qc2 {[%emt 0:00:17]} Kg7 {[%emt 0:00:42]} 69. Na4 {[%emt 0:00:51]} Rd5 {[%emt 0:00:12]} 70. Nc3 {[%emt 0:00:36]} Rh5+ {[%emt 0:00:39]} 71. Kg2 {[%emt 0:00:04]} Qb7 {[%emt 0:00:10]} 72. Qe4 {[%emt 0:00:55]} Qxb3 {[%emt 0:00:33]} 73. Qe2 {[%emt 0:01:07]} Rdh8 {[%emt 0:00:11]} 0-1

[Event "Turkish Cup 2024"]
[Site "Denizli"]
[Date "2024.08.05"]
[Round "10"]
[White "Tokat, Nehir"]
[Black "Girgin, Muhammed Furkan"]
[Result "1-0"]
[ECO "A45"]
[WhiteElo "1892"]
[BlackElo "1757"]
[Annotator "NA RC"]
[PlyCount "73"]
[EventDate "2024.08.01"]
[EventType "swiss"]
[EventCountry "TUR"]
[SourceTitle "playchess.com"]
[Source "ChessBase"]
[SourceQuality "1"]
[TimeControl "5400+30"]

1. d4 {[%emt 0:01:00]} Nf6 {[%emt 0:02:00]} 2. Bg5 {[%emt 0:01:30]} Ne4 {[%emt 0:03:30]} 3. Bf4 {[%emt 0:00:00]} d5 {[%emt 0:00:30]} 4. Nd2 {[%emt 0:00:00]} Nf6 {[%emt 0:00:30]} 5. Ngf3 {[%emt 0:00:30]} e6 {[%emt 0:01:30]} 6. h3 {[%emt 0:01:30]} Bd6 {[%emt 0:04:30]} 7. Bxd6 {[%emt 0:02:30]} cxd6 {[%emt 0:00:30]} 8. e3 {[%emt 0:06:30]} O-O {[%emt 0:00:30]} 9. c4 {[%emt 0:01:30]} dxc4 {[%emt 0:07:30]} 10. Bxc4 {[%emt 0:00:30]} b6 {[%emt 0:00:30]} 11. O-O {[%emt 0:00:30]} Bb7 {[%emt 0:02:30]} 12. Qe2 {[%emt 0:02:30]} Nbd7 {[%emt 0:04:30]} 13. Rac1 {[%emt 0:03:30]} Rc8 {[%emt 0:13:30]} 14. Bd3 {[%emt 0:18:30]} Rxc1 {[%emt 0:11:30]} 15. Rxc1 {[%emt 0:00:30]} Qb8 {[%emt 0:00:00]} 16. e4 {[%emt 0:02:30]} Rc8 {[%emt 0:03:00]} 17. Re1 {[%emt 0:04:30]} e5 {[%emt 0:07:30]} 18. Qe3 {[%emt 0:04:30]} Re8 {[%emt 0:08:30]} 19. d5 {[%emt 0:08:30]} Rc8 {[%emt 0:01:30]} 20. Nh4 {[%emt 0:01:30]} g6 {[%emt 0:02:30]} 21. Qg5 {[%emt 0:04:30]} Kh8 {[%emt 0:04:44]} 22. g3 {[%emt 0:08:30]} Rc5 {[%emt 0:03:35]} 23. f4 {[%emt 0:04:30]} Ng8 {[%emt 0:02:07]} 24. Nhf3 {[%emt 0:03:10]} f6 {[%emt 0:02:52]} 25. Qg4 {[%emt 0:03:18]} Bc8 {[%emt 0:04:00]} 26. f5 {[%emt 0:04:09]} g5 {[%emt 0:00:47]} 27. h4 {[%emt 0:03:14]} h6 {[%emt 0:00:08]} 28. Kf2 {[%emt 0:02:19]} Nf8 {[%emt 0:01:11]} 29. Rh1 {[%emt 0:02:25]} Kg7 {[%emt 0:01:33]} 30. Be2 {[%emt 0:01:21]} Rc2 {[%emt 0:01:47]} 31. hxg5 {[%emt 0:00:43]} fxg5 {[%emt 0:06:28]} 32. Nxg5 {[%emt 0:00:30]} Kf6 {[%emt 0:00:08]} 33. Nh7+ {[%emt 0:02:01]} Nxh7 {[%emt 0:00:20]} 34. Qxg8 {[%emt 0:01:40]} Rxd2 {[%emt 0:00:46]} 35. Rxh6+ {[%emt 0:00:30]} Ke7 {[%emt 0:00:04]} 36. Rxh7+ {[%emt 0:00:22]} Kf6 {[%emt 0:00:30]} 37. Qg6# {[%emt 0:00:00]} 1-0

[Event "Turkish Cup 2024"]
[Site "Denizli"]
[Date "2024.08.05"]
[Round "10"]
[White "Demirci, Fatih"]
[Black "Ozturk, Baran"]
[Result "0-1"]
[ECO "B23"]
[WhiteElo "1885"]
[BlackElo "1701"]
[Annotator "NA RC"]
[PlyCount "92"]
[EventDate "2024.08.01"]
[EventType "swiss"]
[EventCountry "TUR"]
[SourceTitle "playchess.com"]
[Source "ChessBase"]
[SourceQuality "1"]
[TimeControl "5400+30"]

1. e4 {[%emt 0:01:00]} c5 {[%emt 0:03:00]} 2. Nc3 {[%emt 0:00:30]} a6 {[%emt 0:01:30]} 3. f4 {[%emt 0:00:30]} b5 {[%emt 0:00:30]} 4. Nf3 {[%emt 0:00:30]} Bb7 {[%emt 0:00:30]} 5. d3 {[%emt 0:01:30]} e6 {[%emt 0:00:30]} 6. Be2 {[%emt 0:00:30]} d5 {[%emt 0:03:30]} 7. e5 {[%emt 0:00:30]} Ne7 {[%emt 0:02:30]} 8. O-O {[%emt 0:01:30]} Nbc6 {[%emt 0:01:30]} 9. Be3 {[%emt 0:01:30]} Nf5 {[%emt 0:02:30]} 10. Bf2 {[%emt 0:01:30]} h5 {[%emt 0:00:30]} 11. Nb1 {[%emt 0:02:30]} Be7 {[%emt 0:07:30]} 12. Nbd2 {[%emt 0:00:30]} d4 {[%emt 0:09:30]} 13. a3 {[%emt 0:02:30]} g5 {[%emt 0:06:30]} 14. fxg5 {[%emt 0:01:30]} Qd5 {[%emt 0:01:30]} 15. Ne4 {[%emt 0:04:30]} Nxe5 {[%emt 0:01:30]} 16. Nxe5 {[%emt 0:01:30]} Qxe5 {[%emt 0:00:00]} 17. Bf3 {[%emt 0:01:30]} O-O-O {[%emt 0:05:00]} 18. Re1 {[%emt 0:05:30]} Qc7 {[%emt 0:06:30]} 19. a4 {[%emt 0:05:30]} b4 {[%emt 0:06:30]} 20. c3 {[%emt 0:00:30]} dxc3 {[%emt 0:01:30]} 21. bxc3 {[%emt 0:00:30]} bxc3 {[%emt 0:02:30]} 22. Rb1 {[%emt 0:01:30]} Nd4 {[%emt 0:07:30]} 23. Bxd4 {[%emt 0:05:30]} Rxd4 {[%emt 0:01:30]} 24. Nd6+ {[%emt 0:03:30]} Qxd6 {[%emt 0:01:30]} 25. Rxb7 {[%emt 0:05:30]} Rb4 {[%emt 0:03:30]} 26. Ra7 {[%emt 0:05:30]} Bxg5 {[%emt 0:07:18]} 27. Ra8+ {[%emt 0:02:30]} Rb8 {[%emt 0:00:35]} 28. Qb3 {[%emt 0:01:30]} Qd4+ {[%emt 0:01:59]} 29. Kh1 {[%emt 0:04:30]} Qb4 {[%emt 0:00:10]} 30. Rxb8+ {[%emt 0:01:30]} Kxb8 {[%emt 0:00:06]} 31. Qc2 {[%emt 0:00:00]} Kc7 {[%emt 0:03:57]} 32. Rb1 {[%emt 0:00:00]} Qa3 {[%emt 0:00:04]} 33. Qe2 {[%emt 0:02:30]} Kd6 {[%emt 0:04:46]} 34. h4 {[%emt 0:01:30]} Bf4 {[%emt 0:02:10]} 35. Qe4 {[%emt 0:02:30]} Bg3 {[%emt 0:00:26]} 36. d4 {[%emt 0:02:30]} Rb8 {[%emt 0:03:37]} 37. dxc5+ {[%emt 0:02:30]} Ke7 {[%emt 0:00:12]} 38. Bxh5 {[%emt 0:05:30]} Rxb1+ {[%emt 0:01:22]} 39. Qxb1 {[%emt 0:00:30]} Qb2 {[%emt 0:01:05]} 40. Qf1 {[%emt 0:01:30]} f5 {[%emt 0:00:18]} 41. Qd3 {[%emt 0:02:30]} c2 {[%emt 0:00:55]} 42. Qxg3 {[%emt 0:00:30]} c1=Q+ {[%emt 0:00:30]} 43. Kh2 {[%emt 0:00:00]} Qxc5 {[%emt 0:00:16]} 44. Kh3 {[%emt 0:00:00]} Qa1 {[%emt 0:01:17]} 45. Qg5+ {[%emt 0:00:30]} Kd7 {[%emt 0:00:35]} 46. Qg7+ {[%emt 0:04:02]} Qxg7 {[%emt 0:00:09]} 0-1

[Event "Turkish Cup 2024"]
[Site "Denizli"]
[Date "2024.08.05"]
[Round "10"]
[White "Karaca, Yigit"]
[Black "Bozdag, Armagan Emre"]
[Result "1-0"]
[ECO "A45"]
[WhiteElo "1879"]
[BlackElo "1794"]
[Annotator "NA RC"]
[PlyCount "69"]
[EventDate "2024.08.01"]
[EventType "swiss"]
[EventCountry "TUR"]
[SourceTitle "playchess.com"]
[Source "ChessBase"]
[SourceQuality "1"]
[TimeControl "5400+30"]

1. d4 {[%emt 0:01:00]} Nf6 {[%emt 0:04:00]} 2. Bf4 {[%emt 0:00:00]} g6 {[%emt 0:00:30]} 3. Nc3 {[%emt 0:00:00]} d5 {[%emt 0:00:00]} 4. h4 {[%emt 0:00:30]} Bg7 {[%emt 0:02:00]} 5. Nf3 {[%emt 0:00:30]} c5 {[%emt 0:10:30]} 6. e3 {[%emt 0:01:30]} a6 {[%emt 0:02:30]} 7. dxc5 {[%emt 0:02:30]} Qa5 {[%emt 0:04:30]} 8. Qd2 {[%emt 0:17:30]} Qxc5 {[%emt 0:04:30]} 9. Ne5 {[%emt 0:03:30]} b5 {[%emt 0:11:30]} 10. h5 {[%emt 0:04:30]} gxh5 {[%emt 0:08:30]} 11. Rd1 {[%emt 0:02:30]} Bb7 {[%emt 0:05:30]} 12. Be2 {[%emt 0:05:30]} Nc6 {[%emt 0:03:30]} 13. Nd3 {[%emt 0:16:30]} Qb6 {[%emt 0:01:30]} 14. Bxh5 {[%emt 0:01:30]} Rd8 {[%emt 0:01:30]} 15. Bf3 {[%emt 0:05:30]} e6 {[%emt 0:14:30]} 16. b4 {[%emt 0:07:30]} a5 {[%emt 0:04:19]} 17. a3 {[%emt 0:02:30]} axb4 {[%emt 0:00:16]} 18. axb4 {[%emt 0:01:30]} Ng8 {[%emt 0:03:56]} 19. Rh5 {[%emt 0:04:30]} Nge7 {[%emt 0:01:34]} 20. e4 {[%emt 0:01:30]} Nd4 {[%emt 0:05:46]} 21. Kf1 {[%emt 0:03:04]} Ng6 {[%emt 0:06:54]} 22. Bh6 {[%emt 0:07:23]} Bxh6 {[%emt 0:00:21]} 23. Rxh6 {[%emt 0:00:13]} Nxf3 {[%emt 0:01:17]} 24. gxf3 {[%emt 0:00:30]} d4 {[%emt 0:00:00]} 25. Ne2 {[%emt 0:00:13]} Qc7 {[%emt 0:02:14]} 26. Nc5 {[%emt 0:01:32]} e5 {[%emt 0:01:17]} 27. Qg5 {[%emt 0:02:09]} O-O {[%emt 0:00:30]} 28. Ng3 {[%emt 0:00:30]} Bc8 {[%emt 0:00:30]} 29. Nf5 {[%emt 0:00:30]} f6 {[%emt 0:00:30]} 30. Rxg6+ {[%emt 0:00:30]} hxg6 {[%emt 0:00:30]} 31. Qxg6+ {[%emt 0:00:30]} Kh8 {[%emt 0:00:30]} 32. Ke2 {[%emt 0:03:38]} Rf7 {[%emt 0:00:54]} 33. Rh1+ {[%emt 0:00:30]} Rh7 {[%emt 0:00:00]} 34. Qxf6+ {[%emt 0:00:36]} Kg8 {[%emt 0:00:11]} 35. Rg1+ {[%emt 0:00:00]} 1-0